{"text_format":"1","workbook":"xlsx","n_sheets":1,"sheets":["Tabelle1"],"not_rendered":{"charts":0,"images":0,"macros":0,"external_links":0,"defined_names":0,"comments":0,"pivot_tables":0},"unopened":[],"bounds":{"document_bytes":16777216,"sheet_cells":100000,"rows_first":2000,"rows_last":500,"rows_between":2000,"halvings":0,"cell_chars":16384,"cell_head_chars":4096},"cells_cut":0,"cells_raw":0,"read":"whole","date_system":"1900"}

{"sheet":"Tabelle1","index":0,"n_rows":214,"n_cols":22,"rows_kept":214,"cut":false,"hidden":false,"merged":[[11,11,11,21],[14,6,14,8],[17,0,17,21],[34,0,34,14],[27,0,27,7],[31,0,31,7],[31,9,31,14],[31,16,31,21],[29,16,29,21],[37,0,37,7],[1,11,1,21],[2,11,2,21],[3,11,3,21],[21,0,21,4],[21,6,21,7],[21,9,21,14],[21,16,21,21],[24,0,24,21],[11,0,11,8],[40,9,40,14],[42,0,42,21],[43,0,43,21],[44,0,44,21],[40,15,40,21],[40,0,40,7],[49,0,49,21],[50,0,50,21],[51,0,51,21],[52,0,52,21],[45,0,45,21],[46,0,46,21],[47,0,47,21],[48,0,48,21],[58,3,58,21],[54,18,54,21],[56,18,56,21],[64,0,64,2],[64,4,64,7],[64,9,64,21],[83,11,83,21],[70,0,70,21],[71,0,71,21],[59,3,59,21],[60,3,60,21],[69,0,69,21],[66,0,66,21],[107,16,108,17],[106,18,106,21],[107,18,108,21],[86,6,86,8],[89,0,89,21],[93,0,93,4],[93,6,93,7],[93,9,93,14],[93,16,93,21],[114,0,114,21],[115,0,115,21],[116,0,116,21],[117,0,117,21],[106,0,106,14],[109,0,109,7],[112,0,112,7],[112,9,112,14],[112,15,112,21],[106,16,106,17],[122,0,122,21],[123,0,123,21],[124,0,124,21],[126,18,126,21],[118,0,118,21],[119,0,119,21],[120,0,120,21],[121,0,121,21],[136,0,136,2],[136,4,136,7],[136,9,136,21],[138,0,138,21],[128,18,128,21],[130,3,130,21],[131,3,131,21],[132,3,132,21],[145,11,145,21],[146,11,146,21],[154,0,154,8],[157,6,157,8],[154,11,154,21],[140,0,140,21],[141,0,141,21],[142,0,142,21],[144,11,144,21],[167,0,167,21],[170,0,170,7],[174,0,174,7],[174,9,174,14],[174,16,174,21],[160,0,160,21],[164,0,164,4],[164,6,164,7],[164,9,164,14],[164,16,164,21],[177,0,177,14],[180,0,180,7],[183,0,183,7],[183,9,183,14],[183,15,183,21],[177,16,177,17],[177,18,177,21],[178,16,179,17],[178,18,179,21],[191,0,191,21],[192,0,192,21],[193,0,193,21],[194,0,194,21],[185,0,185,21],[186,0,186,21],[187,0,187,21],[188,0,188,21],[203,3,203,21],[212,0,212,21],[213,0,213,21],[207,0,207,2],[207,4,207,7],[207,9,207,21],[209,0,209,21],[211,0,211,21],[34,16,34,17],[34,18,34,21],[35,18,36,21],[199,18,199,21],[201,3,201,21],[202,3,202,21],[195,0,195,21],[197,18,197,21],[189,0,189,21],[190,0,190,21],[96,0,96,21],[99,0,99,7],[103,0,103,7],[103,9,103,14],[103,16,103,21],[35,16,36,17],[73,11,73,21],[74,11,74,21],[75,11,75,21],[83,0,83,8]]}
[]
["AAW GmbH  ",null,null,null,null,null,null,null,null,null,null,"Als Kontrollmeldung gemäß AÜG"]
["Personalleasing und Beratung",null,null,null,null,null,null,null,null,null,null,"3 Jahre beim Auftraggeber "]
["Allee 40"]
["74072 Heilbronn",null,null,null,null,null,null,null,null,null,null,null,null,null,null,null,null,null,null,null,null,"PW:AUG"]
[]
["Arbeitnehmerüberlassungsvertrag"]
["Nachweis (gemäß §77 SGB IX)*"]
[]
["Der Arbeitnehmer (m/w)"]
["(Name, Vorname)",null,null,null,null,null,null,null,null,null,null,"Versicherungsnummer"]
[]
["Geburtsdatum",null,null,null,null,null,null,null,null,null,null,"Beginn der Überlassung",null,null,null,null,null,"Ende der Überlassung"]
["Tag ",null,"Monat",null,"Jahr",null,"Staatsangehörigkeit",null,null,null,null,"Tag",null,"Monat",null,"Jahr",null,"Tag",null,"Monat",null,"Jahr"]
[]
[]
["Anschrift"]
[]
[]
["wird vom Arbeitgeber"]
["(Firmenname)",null,null,null,null,null,"Geschäftsstelle",null,null,"Telefon",null,null,null,null,null,null,"Betriebsnummer"]
["AAW GmbH",null,null,null,null,null,"Heilbronn",null,null,"07131/7979340",null,null,null,null,null,null,61977004]
[]
["Anschrift"]
["Allee 40, 74072 Heilbronn"]
[]
["Konto bei der Krankenkasse, sofern nicht mit der Betriebsnummer identisch"]
[61977004]
[]
["bei Auftraggeber",null,null,null,null,null,null,null,null,null,null,null,null,null,null,null,"Unbedingt ausfüllen!"]
["(Firmenname)",null,null,null,null,null,null,null,null,"Telefon",null,null,null,null,null,null,"Betriebsnummer:"]
[]
[]
["Anschrift",null,null,null,null,null,null,null,null,null,null,null,null,null,null,null,"Sicherheitsbeauftragter:"]
[null,null,null,null,null,null,null,null,null,null,null,null,null,null,null,null,"Name:"]
[null,null,null,null,null,null,null,null,null,null,null,null,null,null,null,null,"("]
["Konto bei der Krankenkasse, sofern nicht mit Betriebsnummer identisch"]
[]
[]
["als",null,null,null,null,null,null,null,null,"berufl. Qualifikation"]
["Gew. Helfer",null,null,null,null,null,null,null,null,null,null,null,null,null,null,"für den angeg. Zeitraum eingesetzt."]
[]
["Die AAW GmbH ist im Besitz der  Erlaubnis zur gewerbsmäßigen  Arbeitnehmerüberlassung nach Art. 1 §1 AÜG des Landesarbeitsamtes"]
["Rheinland-Pfalz-Saarland vom 21.03.2003."]
["Im  Zuge  der  mit  dem  Auftraggeber  vereinbarten  Dienstleistungsarbeiten  auf  technischem  und  kaufmännischem  Sektor  schließt die   "]
["AAW GmbH mit dem  Auftraggeber unter Zugrundelegung der im Gesetz zur  Regelung der gewerblichen Arbeitnehmerüberlassung (AÜG)"]
["festgelegten  Grundsätze, der  Preislisten und der umseitigen  Allgemeinen  Geschäftsbedingungen der  AAW GmbH einen Arbeitnehmer-"]
["überlassungsvertrag."]
["Sollte der Arbeitnehmer (m/w) während des Einsatzes oder innerhalb von 12 Monaten nach Ablauf des Einsatzes vom Auftraggeber in ein "]
["Arbeitsverhältnis  übernommen werden, schuldet der  Auftraggeber der  AAW GmbH eine Vermittlungsgebühr in Höhe von 3/12 des Brutto-"]
["Jahresverdienstes  des  Arbeitnehmers.  Fälligkeit der  Vermittlungsgebühr  und  Berechnungszeitpunkt  dafür ist  der erste  Arbeitstag des "]
["Arbeitnehmers beim Auftraggeber."]
["Der Auftraggeber versichert, nicht im Bauhauptgewerbe tätig zu sein."]
[]
["Verrechnungssatz pro Std. in EUR",null,null,null,null,null,null,null," + Mwst.",null,null,null,null,"Basis für Zuschläge in EUR "]
[]
["Arbeitszeit täglich in Std.",null,null,null,null,null,null,null,null,null,null," wöchentliche Regelarbeitszeit in Std."]
[]
["Sonstiges :                                                                                                                                                                                                                                "]
[]
[]
[]
[]
[]
[]
["Datum",null,null,null,"Stempel und Unterschrift der AAW GmbH",null,null,null,null,"Stempel und Unterschrift des Auftraggebers"]
["* Für den angegebenen Zeitraum wird die Ausgleichsabgabe gemäß § 77 SGB IX von der AAW GmbH übernommen."]
[]
[]
["AAW GmbH  -  Personalleasing und Beratung  -  Zentrale Geschäftsstelle 76829 Landau, Waffenstraße 16a  "]
["Arbeitskreis für Aus- und Weiterbildung GmbH  -  Sitz der Gesellschaft: Fockestr. 7, 67454 Haßloch"]
["Registergericht: AG Ludwigshafen am Rhein HRB 2322  -  Geschäftsführer: Dietmar Roser  -  Steuer-Nummer: 24/652/0609/6"]
[]
["AAW GmbH  ",null,null,null,null,null,null,null,null,null,null,"Bitte senden Sie diese "]
["Personalleasing und Beratung",null,null,null,null,null,null,null,null,null,null,"Zweitschrift unterschrieben an die "]
["Allee 40",null,null,null,null,null,null,null,null,null,null,"AAW GmbH zurück."]
["74072 Heilbronn"]
[]
["Arbeitnehmerüberlassungsvertrag"]
["Nachweis (gemäß §77 SGB IX)*"]
[]
["Der Arbeitnehmer (m/w)"]
["(Name, Vorname)",null,null,null,null,null,null,null,null,null,null,"Versicherungsnummer"]
[{"$f":"A12","v":0},null,null,null,null,null,null,null,null,null,null,{"$f":"L12","v":0}]
["Geburtsdatum",null,null,null,null,null,null,null,null,null,null,"Beginn der Überlassung",null,null,null,null,null,"Ende der Überlassung"]
["Tag ",null,"Monat",null,"Jahr",null,"Staatangehörigkeit",null,null,null,null,"Tag",null,"Monat",null,"Jahr",null,"Tag",null,"Monat",null,"Jahr"]
[{"$f":"A15","v":0},null,{"$f":"C15","v":0},null,{"$f":"E15","v":0},null,{"$f":"G15","v":0},null,null,null,null,{"$f":"L15","v":0},null,{"$f":"N15","v":0},null,{"$f":"P15","v":0},null,{"$f":"R15","v":0},null,{"$f":"T15","v":0},null,{"$f":"V15","v":0}]
[]
["Anschrift"]
[{"$f":"A18","v":0}]
[]
["wird vom Arbeitgeber"]
["(Firmenname)",null,null,null,null,null,"Geschäftsstelle",null,null,"Telefon",null,null,null,null,null,null,"Betriebsnummer"]
["AAW GmbH",null,null,null,null,null,"Heilbronn",null,null,"07131/7979340",null,null,null,null,null,null,61977004]
[]
["Anschrift"]
["Allee 40, 74072 Heilbronn"]
[]
["Konto bei der Krankenkasse, sofern nicht mit der Betriebsnummer identisch"]
[61977004]
[]
["bei Auftraggeber",null,null,null,null,null,null,null,null,null,null,null,null,null,null,null,{"$f":"Q30","v":"Unbedingt ausfüllen!"}]
["(Firmenname)",null,null,null,null,null,null,null,null,"Telefon",null,null,null,null,null,null,{"$f":"Q31","v":"Betriebsnummer:"}]
[{"$f":"A32","v":0},null,null,null,null,null,null,null,null,{"$f":"J32","v":0}]
[]
["Anschrift",null,null,null,null,null,null,null,null,null,null,null,null,null,null,null,{"$f":"Q34","v":"Sicherheitsbeauftragter:"}]
[{"$f":"A35","v":0},null,null,null,null,null,null,null,null,null,null,null,null,null,null,null,"Name:"]
[null,null,null,null,null,null,null,null,null,null,null,null,null,null,null,null,"("]
["Konto bei der Krankenkasse, sofern nicht mit Betriebsnummer identisch"]
[{"$f":"A38","v":0}]
[]
["als",null,null,null,null,null,null,null,null,"berufl. Qualifikation"]
[{"$f":"A41","v":"Gew. Helfer"},null,null,null,null,null,null,null,null,{"$f":"J41","v":0},null,null,null,null,null,"für den angeg. Zeitraum eingesetzt."]
[]
["Die AAW GmbH ist im Besitz der  Erlaubnis zur gewerbsmäßigen  Arbeitnehmerüberlassung nach Art. 1 §1 AÜG des Landesarbeitsamtes"]
["Rheinland-Pfalz-Saarland vom 21.03.2003."]
["Im  Zuge  der  mit  dem  Auftraggeber  vereinbarten  Dienstleistungsarbeiten  auf  technischem  und  kaufmännischem  Sektor  schließt die   "]
["AAW GmbH mit dem  Auftraggeber unter Zugrundelegung der im Gesetz zur  Regelung der gewerblichen Arbeitnehmerüberlassung (AÜG)"]
["festgelegten  Grundsätze, der  Preislisten und der umseitigen  Allgemeinen  Geschäftsbedingungen der  AAW GmbH einen Arbeitnehmer-"]
["überlassungsvertrag."]
["Sollte der Arbeitnehmer (m/w) während des Einsatzes oder innerhalb von 12 Monaten nach Ablauf des Einsatzes vom Auftraggeber in ein "]
["Arbeitsverhältnis  übernommen werden, schuldet der  Auftraggeber der  AAW GmbH eine Vermittlungsgebühr in Höhe von 3/12 des Brutto-"]
["Jahresverdienstes  des  Arbeitnehmers.  Fälligkeit der  Vermittlungsgebühr  und  Berechnungszeitpunkt  dafür ist  der erste  Arbeitstag des "]
["Arbeitnehmers beim Auftraggeber."]
["Der Auftraggeber versichert, nicht im Bauhauptgewerbe tätig zu sein."]
[]
["Verrechnungssatz pro Std. in EUR",null,null,null,null,null,null,{"$f":"H55","v":0}," + Mwst.",null,null,null,null,"Basis für Zuschläge in EUR ",null,null,null,null,{"$f":"S55","v":0}]
[]
["Arbeitszeit täglich in Std.",null,null,null,null,null,null,{"$f":"H57","v":0},null,null,null," wöchentliche Regelarbeitszeit in Std.",null,null,null,null,null,null,{"$f":"S57","v":0}]
[]
["Sonstiges :                                                                                                                                                                                                                                ",null,null,{"$f":"D59","v":0}]
[null,null,null,{"$f":"D60","v":0}]
[null,null,null,{"$f":"D61","v":0}]
[]
[]
[]
[]
["Datum",null,null,null,"Stempel und Unterschrift der AAW GmbH",null,null,null,null,"Stempel und Unterschrift des Auftraggebers"]
["* Für den angegebenen Zeitraum wird die Ausgleichsabgabe gemäß § 77 SGB IX von der AAW GmbH übernommen."]
[]
["AAW GmbH  -  Personalleasing und Beratung  -  Zentrale Geschäftsstelle 76829 Landau, Waffenstraße 16a  "]
["Arbeitskreis für Aus- und Weiterbildung GmbH  -  Sitz der Gesellschaft: Fockestr. 7, 67454 Haßloch"]
["Registergericht: AG Ludwigshafen am Rhein HRB 2322  -  Geschäftsführer: Dietmar Roser  -  Steuer-Nummer: 24/652/0609/6"]
[]
["AAW GmbH  "]
["Personalleasing und Beratung",null,null,null,null,null,null,null,null,null,null,"Beleg für AAW GmbH"]
["Allee 40"]
["74072 Heilbronn"]
[]
["Arbeitnehmerüberlassungsvertrag"]
["Nachweis (gemäß §77 SGB IX)*"]
[]
["Der Arbeitnehmer (m/w)"]
["(Name, Vorname)",null,null,null,null,null,null,null,null,null,null,"Versicherungsnummer"]
[{"$f":"A12","v":0},null,null,null,null,null,null,null,null,null,null,{"$f":"L12","v":0}]
["Geburtsdatum",null,null,null,null,null,null,null,null,null,null,"Beginn der Überlassung",null,null,null,null,null,"Ende der Überlassung"]
["Tag ",null,"Monat",null,"Jahr",null,"Staatangehörigkeit",null,null,null,null,"Tag",null,"Monat",null,"Jahr",null,"Tag",null,"Monat",null,"Jahr"]
[{"$f":"A15","v":0},null,{"$f":"C15","v":0},null,{"$f":"E15","v":0},null,{"$f":"G15","v":0},null,null,null,null,{"$f":"L15","v":0},null,{"$f":"N15","v":0},null,{"$f":"P15","v":0},null,{"$f":"R15","v":0},null,{"$f":"T15","v":0},null,{"$f":"V15","v":0}]
[]
["Anschrift"]
[{"$f":"A18","v":0}]
[]
["wird vom Arbeitgeber"]
["(Firmenname)",null,null,null,null,null,"Geschäftsstelle",null,null,"Telefon",null,null,null,null,null,null,"Betriebsnummer"]
["AAW GmbH",null,null,null,null,null,"Heilbronn",null,null,"07131/7979340",null,null,null,null,null,null,61977004]
[]
["Anschrift"]
["Allee 40, 74072 Heilbronn"]
[]
["Konto bei der Krankenkasse, sofern nicht mit der Betriebsnummer identisch"]
[61977004]
[]
["bei Auftraggeber",null,null,null,null,null,null,null,null,null,null,null,null,null,null,null,{"$f":"Q102","v":"Unbedingt ausfüllen!"}]
["(Firmenname)",null,null,null,null,null,null,null,null,"Telefon",null,null,null,null,null,null,{"$f":"Q103","v":"Betriebsnummer:"}]
[{"$f":"A32","v":0},null,null,null,null,null,null,null,null,{"$f":"J32","v":0}]
[]
["Anschrift",null,null,null,null,null,null,null,null,null,null,null,null,null,null,null,{"$f":"Q106","v":"Sicherheitsbeauftragter:"}]
[{"$f":"A35","v":0},null,null,null,null,null,null,null,null,null,null,null,null,null,null,null,"Name:"]
[null,null,null,null,null,null,null,null,null,null,null,null,null,null,null,null,"("]
["Konto bei der Krankenkasse, sofern nicht mit Betriebsnummer identisch"]
[{"$f":"A38","v":0}]
[]
["als",null,null,null,null,null,null,null,null,"berufl. Qualifikation"]
[{"$f":"A41","v":"Gew. Helfer"},null,null,null,null,null,null,null,null,{"$f":"J41","v":0},null,null,null,null,null,"für den angeg. Zeitraum eingesetzt."]
[]
["Die AAW GmbH ist im Besitz der  Erlaubnis zur gewerbsmäßigen  Arbeitnehmerüberlassung nach Art. 1 §1 AÜG des Landesarbeitsamtes"]
["Rheinland-Pfalz-Saarland vom 21.03.2003."]
["Im  Zuge  der  mit  dem  Auftraggeber  vereinbarten  Dienstleistungsarbeiten  auf  technischem  und  kaufmännischem  Sektor  schließt die   "]
["AAW GmbH mit dem  Auftraggeber unter Zugrundelegung der im Gesetz zur  Regelung der gewerblichen Arbeitnehmerüberlassung (AÜG)"]
["festgelegten  Grundsätze, der  Preislisten und der umseitigen  Allgemeinen  Geschäftsbedingungen der  AAW GmbH einen Arbeitnehmer-"]
["überlassungsvertrag."]
["Sollte der Arbeitnehmer (m/w) während des Einsatzes oder innerhalb von 12 Monaten nach Ablauf des Einsatzes vom Auftraggeber in ein "]
["Arbeitsverhältnis  übernommen werden, schuldet der  Auftraggeber der  AAW GmbH eine Vermittlungsgebühr in Höhe von 3/12 des Brutto-"]
["Jahresverdienstes  des  Arbeitnehmers.  Fälligkeit der  Vermittlungsgebühr  und  Berechnungszeitpunkt  dafür ist  der erste  Arbeitstag des "]
["Arbeitnehmers beim Auftraggeber."]
["Der Auftraggeber versichert, nicht im Bauhauptgewerbe tätig zu sein."]
[]
["Verrechnungssatz pro Std. in EUR",null,null,null,null,null,null,{"$f":"H55","v":0}," + Mwst.",null,null,null,null,"Basis für Zuschläge in EUR ",null,null,null,null,{"$f":"S55","v":0}]
[]
["Arbeitszeit täglich in Std.",null,null,null,null,null,null,{"$f":"H57","v":0},null,null,null," wöchentliche Regelarbeitszeit in Std.",null,null,null,null,null,null,{"$f":"S57","v":0}]
[]
["Sonstiges :                                                                                                                                                                                                                                ",null,null,{"$f":"D59","v":0}]
[null,null,null,{"$f":"D60","v":0}]
[null,null,null,{"$f":"D61","v":0}]
[]
[]
[]
[]
["Datum",null,null,null,"Stempel und Unterschrift der AAW GmbH",null,null,null,null,"Stempel und Unterschrift des Auftraggebers"]
["* Für den angegebenen Zeitraum wird die Ausgleichsabgabe gemäß § 77 SGB IX von der AAW GmbH übernommen."]
[]
["AAW GmbH  -  Personalleasing und Beratung  -  Zentrale Geschäftsstelle 76829 Landau, Waffenstraße 16a  "]
["Arbeitskreis für Aus- und Weiterbildung GmbH  -  Sitz der Gesellschaft: Fockestr. 7, 67454 Haßloch"]
["Registergericht: AG Ludwigshafen am Rhein HRB 2322  -  Geschäftsführer: Dietmar Roser  -  Steuer-Nummer: 24/652/0609/6"]